[Event "5th EKA IIFL Investment 2019"]
[Site "Mumbai"]
[Date "2020.01.06"]
[Round "8.59"]
[White "Rakshitta Ravi"]
[Black "Sarbojit Paul"]
[Result "1-0"]
[ECO "B91"]
[WhiteElo "2260"]
[BlackElo "2084"]
[Annotator "ChessBase"]
[PlyCount "91"]
[EventDate "2019.12.30"]
[EventType "swiss"]
[EventCountry "IND"]
[SourceTitle "playchess.com"]
[Source "ChessBase"]
[SourceQuality "1"]
[TimeControl "40/5400+30:1800+30"]

1. e4 c5 2. Nf3 d6 3. Nc3 a6 4. d4 cxd4 5. Nxd4 Nf6 6. g3 Nc6 7. Bg2 Bg4 8. Nxc6 bxc6 9. f3 Bd7 10. Be3 e5 11. O-O Be7 12. h3 Rb8 13. Rb1 Qc8 14. Kh2 h5 15. Na4 Bxh3 16. Bxh3 Ng4+ 17. fxg4 hxg4 18. Kg2 gxh3+ 19. Kh2 Qe6 20. Nc3 Rd8 21. Qf3 d5 22. Bb6 Rd7 23. Qf5 Rb7 24. Qxe6 fxe6 25. Na4 Bf6 26. b4 Kf7 27. Ba5 Ke7 28. Nc5 Ra7 29. Bb6 Raa8 30. a4 g5 31. Nd3 Bg7 32. Bc5+ Ke8 33. Rbe1 Rd8 34. exd5 Rxd5 35. Rf2 Rh5 36. Rfe2 g4 37. Re4 Rg5 38. Nf2 Rd2 39. R1e2 Rxe2 40. Rxe2 Kf7 41. Re4 Kg6 42. Rxg4 Rxg4 43. Nxg4 Kf5 44. Nf2 Bh6 45. Kxh3 e4 46. Ng4 1-0